[Event "*** Titled Tuesday Blitz"]
[Site "Chess.com"]
[Date "2019.10.01"]
[Round "2"]
[White "Shubinkirill2003"]
[Black "Vuk2000"]
[Result "1/2-1/2"]
[WhiteElo "2541"]
[BlackElo "2812"]
[TimeControl "180+2"]
[EndTime "13:26:01 PDT"]
[Termination "Game drawn by repetition"]

1. e4 {[%clk 0:03:01.9]} 1... e6 {[%clk 0:03:00.9]} 2. d4 {[%clk 0:03:02.3]}
2... d5 {[%clk 0:03:02.2]} 3. Nc3 {[%clk 0:03:02.8]} 3... Bb4 {[%clk 0:03:02.9]}
4. e5 {[%clk 0:03:03.4]} 4... c5 {[%clk 0:03:03.9]} 5. a3 {[%clk 0:03:03.7]}
5... Bxc3+ {[%clk 0:03:04.9]} 6. bxc3 {[%clk 0:03:04.6]} 6... Ne7 {[%clk
0:03:02.9]} 7. Qg4 {[%clk 0:03:04.8]} 7... Qc7 {[%clk 0:03:03.7]} 8. Bd3 {[%clk
0:02:55.8]} 8... c4 {[%clk 0:03:03.7]} 9. Be2 {[%clk 0:02:54.5]} 9... Nf5 {[%clk
0:03:04.8]} 10. Nf3 {[%clk 0:02:53.1]} 10... Nc6 {[%clk 0:03:03.5]} 11. O-O
{[%clk 0:02:45]} 11... Bd7 {[%clk 0:03:01.9]} 12. Nh4 {[%clk 0:02:34.1]} 12...
Nce7 {[%clk 0:03:00.7]} 13. Bg5 {[%clk 0:02:30.3]} 13... Nxh4 {[%clk 0:02:51]}
14. Bxe7 {[%clk 0:02:22.2]} 14... Nf5 {[%clk 0:02:36.1]} 15. Bd6 {[%clk
0:02:15.7]} 15... Qc6 {[%clk 0:02:24.1]} 16. a4 {[%clk 0:02:11]} 16... g6 {[%clk
0:01:43.3]} 17. Ba3 {[%clk 0:01:55.7]} 17... Qc7 {[%clk 0:01:39.3]} 18. Qf4
{[%clk 0:01:27.4]} 18... h5 {[%clk 0:01:32.3]} 19. Rfb1 {[%clk 0:01:20.2]} 19...
Bxa4 {[%clk 0:01:26.8]} 20. Bd6 {[%clk 0:01:15.4]} 20... Qd7 {[%clk 0:01:27]}
21. Rb2 {[%clk 0:00:43.6]} 21... Nxd6 {[%clk 0:01:17.1]} 22. exd6 {[%clk
0:00:39.7]} 22... Bc6 {[%clk 0:01:17.7]} 23. g4 {[%clk 0:00:24.9]} 23... hxg4
{[%clk 0:01:06]} 24. Bxg4 {[%clk 0:00:20.4]} 24... O-O {[%clk 0:01:04]} 25. Re1
{[%clk 0:00:19.7]} 25... f5 {[%clk 0:00:53.6]} 26. Bd1 {[%clk 0:00:19.9]} 26...
Rad8 {[%clk 0:00:54.4]} 27. Re3 {[%clk 0:00:19.8]} 27... g5 {[%clk 0:00:39.3]}
28. Rg3 {[%clk 0:00:16.5]} 28... Rf7 {[%clk 0:00:31.8]} 29. Qxg5+ {[%clk
0:00:12.4]} 29... Rg7 {[%clk 0:00:33.1]} 30. Qf6 {[%clk 0:00:11.3]} 30... Rf8
{[%clk 0:00:31.5]} 31. Qe5 {[%clk 0:00:10.6]} 31... f4 {[%clk 0:00:29.4]} 32.
Rg4 {[%clk 0:00:10.9]} 32... Rf5 {[%clk 0:00:27.7]} 33. Qe1 {[%clk 0:00:06.1]}
33... Qxd6 {[%clk 0:00:23.7]} 34. Bf3 {[%clk 0:00:07.2]} 34... Rf6 {[%clk
0:00:19.6]} 35. h3 {[%clk 0:00:08.1]} 35... a5 {[%clk 0:00:20.3]} 36. Rb1 {[%clk
0:00:09.1]} 36... a4 {[%clk 0:00:20.4]} 37. Qd2 {[%clk 0:00:10]} 37... Rfg6
{[%clk 0:00:20.5]} 38. Re1 {[%clk 0:00:10.6]} 38... a3 {[%clk 0:00:21.1]} 39.
Qc1 {[%clk 0:00:11.6]} 39... Bd7 {[%clk 0:00:21.7]} 40. Re5 {[%clk 0:00:11.5]}
40... Qe7 {[%clk 0:00:22.2]} 41. Kf1 {[%clk 0:00:07.9]} 41... Rf6 {[%clk
0:00:12.4]} 42. Ke2 {[%clk 0:00:08.4]} 42... Rxg4 {[%clk 0:00:13.1]} 43. hxg4
{[%clk 0:00:09]} 43... Rf7 {[%clk 0:00:13]} 44. Bxd5 {[%clk 0:00:09.3]} 44...
Qd6 {[%clk 0:00:14.2]} 45. Bf3 {[%clk 0:00:10.2]} 45... a2 {[%clk 0:00:14.4]}
46. Ra5 {[%clk 0:00:10.6]} 46... Bc6 {[%clk 0:00:13.7]} 47. Rxa2 {[%clk
0:00:06.5]} 47... Bxf3+ {[%clk 0:00:14.6]} 48. Kxf3 {[%clk 0:00:07.5]} 48...
Qc6+ {[%clk 0:00:16.1]} 49. Ke2 {[%clk 0:00:08.2]} 49... Qe4+ {[%clk 0:00:17.3]}
50. Kd2 {[%clk 0:00:08.8]} 50... f3 {[%clk 0:00:15.5]} 51. Qe1 {[%clk
0:00:09.1]} 51... Qxg4 {[%clk 0:00:14.5]} 52. Qe5 {[%clk 0:00:09.9]} 52... Kh7
{[%clk 0:00:12.4]} 53. Ra8 {[%clk 0:00:09.7]} 53... Rg7 {[%clk 0:00:06.7]} 54.
Re8 {[%clk 0:00:09.8]} 54... Qg6 {[%clk 0:00:03.5]} 55. Rxe6 {[%clk 0:00:09]}
55... Qg4 {[%clk 0:00:04.7]} 56. Qh2+ {[%clk 0:00:09.2]} 56... Kg8 {[%clk
0:00:05.8]} 57. Qb8+ {[%clk 0:00:08.3]} 57... Kh7 {[%clk 0:00:07.2]} 58. Re3
{[%clk 0:00:08.6]} 58... Qf5 {[%clk 0:00:07.1]} 59. Qh2+ {[%clk 0:00:08.5]}
59... Kg8 {[%clk 0:00:08.2]} 60. Qd6 {[%clk 0:00:07.8]} 60... Qf7 {[%clk
0:00:07.3]} 61. Qd8+ {[%clk 0:00:08.1]} 61... Kh7 {[%clk 0:00:08.2]} 62. Qh4+
{[%clk 0:00:09]} 62... Kg8 {[%clk 0:00:09.6]} 63. Qe4 {[%clk 0:00:09.7]} 63...
Rg2 {[%clk 0:00:10]} 64. Rxf3 {[%clk 0:00:07.8]} 64... Rxf2+ {[%clk 0:00:09.6]}
65. Rxf2 {[%clk 0:00:08.8]} 65... Qxf2+ {[%clk 0:00:11.5]} 66. Kc1 {[%clk
0:00:09.9]} 66... Qf7 {[%clk 0:00:11.2]} 67. Kb2 {[%clk 0:00:10.4]} 67... Qc7
{[%clk 0:00:10.6]} 68. d5 {[%clk 0:00:10.7]} 68... Qb6+ {[%clk 0:00:10.9]} 69.
Kc1 {[%clk 0:00:11.6]} 69... Qg1+ {[%clk 0:00:11.6]} 70. Kd2 {[%clk 0:00:11.4]}
70... Qf2+ {[%clk 0:00:12.7]} 71. Qe2 {[%clk 0:00:11.2]} 71... Qf4+ {[%clk
0:00:11.9]} 72. Kd1 {[%clk 0:00:12.1]} 72... Kf8 {[%clk 0:00:09.1]} 73. Qe6
{[%clk 0:00:11.5]} 73... Qf1+ {[%clk 0:00:06.9]} 74. Kd2 {[%clk 0:00:12.3]}
74... Qf2+ {[%clk 0:00:06.8]} 75. Kc1 {[%clk 0:00:12.1]} 75... Qg1+ {[%clk
0:00:06.3]} 76. Kb2 {[%clk 0:00:12.9]} 76... Qc5 {[%clk 0:00:08]} 77. d6 {[%clk
0:00:10.4]} 77... Qb6+ {[%clk 0:00:08.9]} 78. Kc1 {[%clk 0:00:10.9]} 78... Qg1+
{[%clk 0:00:09.9]} 79. Kd2 {[%clk 0:00:10.3]} 79... Qf2+ {[%clk 0:00:11.2]} 80.
Kd1 {[%clk 0:00:11]} 80... Qf1+ {[%clk 0:00:11]} 81. Kd2 {[%clk 0:00:06]} 81...
Qf2+ {[%clk 0:00:10.5]} 82. Kc1 {[%clk 0:00:05.5]} 82... Qg1+ {[%clk 0:00:10.5]}
83. Kb2 {[%clk 0:00:06.7]} 83... Qb6+ {[%clk 0:00:11.7]} 84. Kc1 {[%clk
0:00:07.6]} 84... Qg1+ {[%clk 0:00:12.3]} 1/2-1/2

[Event "*** Titled Tuesday Blitz"]
[Site "Chess.com"]
[Date "2019.10.01"]
[Round "3"]
[White "Raja3401"]
[Black "AliKa2810"]
[Result "0-1"]
[WhiteElo "2797"]
[BlackElo "2615"]
[TimeControl "180+2"]
[EndTime "13:31:53 PDT"]
[Termination "AliKa2810 won by resignation"]

1. e4 {[%clk 0:03:01.9]} 1... e6 {[%clk 0:03:00.5]} 2. d4 {[%clk 0:03:01.7]}
2... d5 {[%clk 0:03:02.1]} 3. Nd2 {[%clk 0:03:03.6]} 3... c5 {[%clk 0:03:01.3]}
4. exd5 {[%clk 0:03:03.6]} 4... Qxd5 {[%clk 0:03:02.2]} 5. Ngf3 {[%clk 0:03:05]}
5... cxd4 {[%clk 0:03:03.5]} 6. Bc4 {[%clk 0:03:06.8]} 6... Qd7 {[%clk
0:03:04.8]} 7. O-O {[%clk 0:03:08]} 7... Nc6 {[%clk 0:03:06]} 8. Nb3 {[%clk
0:03:09.4]} 8... Nf6 {[%clk 0:03:06.2]} 9. Nbxd4 {[%clk 0:03:10.6]} 9... Nxd4
{[%clk 0:03:07.4]} 10. Nxd4 {[%clk 0:03:12.5]} 10... a6 {[%clk 0:03:08.7]} 11.
Re1 {[%clk 0:03:13.3]} 11... Qc7 {[%clk 0:03:07.4]} 12. Bf1 {[%clk 0:03:06.8]}
12... Bd6 {[%clk 0:03:08.2]} 13. Nf5 {[%clk 0:03:07.6]} 13... Bxh2+ {[%clk
0:03:07.9]} 14. Kh1 {[%clk 0:03:08.8]} 14... O-O {[%clk 0:03:09.4]} 15. Nxg7
{[%clk 0:03:09]} 15... Rd8 {[%clk 0:03:09.3]} 16. Qf3 {[%clk 0:03:07.1]} 16...
Kxg7 {[%clk 0:03:09.3]} 17. Bh6+ {[%clk 0:02:50.9]} 17... Kg6 {[%clk 0:03:09.5]}
18. Bd3+ {[%clk 0:02:46]} 18... Rxd3 {[%clk 0:03:09.1]} 19. Qxd3+ {[%clk
0:02:47.9]} 19... Kxh6 {[%clk 0:03:10.3]} 20. Qh3+ {[%clk 0:02:41.8]} 20... Kg7
{[%clk 0:03:09.9]} 21. g3 {[%clk 0:02:40.7]} 21... b5 {[%clk 0:03:06]} 22. Kxh2
{[%clk 0:02:41.1]} 22... Bb7 {[%clk 0:03:07.4]} 23. Qh4 {[%clk 0:02:41]} 23...
Qxc2 {[%clk 0:03:05.7]} 24. Qg5+ {[%clk 0:02:38.2]} 24... Qg6 {[%clk 0:03:06.2]}
25. Re5 {[%clk 0:02:37.1]} 25... Ng4+ {[%clk 0:02:53.2]} 26. Kg1 {[%clk
0:02:34.2]} 26... Nxe5 {[%clk 0:02:54]} 27. Qxe5+ {[%clk 0:02:36.1]} 27... Qf6
{[%clk 0:02:53.2]} 28. Qc7 {[%clk 0:02:35.8]} 28... Qf3 {[%clk 0:02:54.1]} 0-1

[Event "*** Titled Tuesday Blitz"]
[Site "Chess.com"]
[Date "2019.10.01"]
[Round "3"]
[White "FMJoseHerrera"]
[Black "DonBroca"]
[Result "1-0"]
[WhiteElo "2517"]
[BlackElo "2087"]
[TimeControl "180+2"]
[EndTime "13:32:26 PDT"]
[Termination "FMJoseHerrera won by resignation"]

1. Nf3 {[%clk 0:03:01.9]} 1... Nf6 {[%clk 0:03:01]} 2. g3 {[%clk 0:03:02.2]}
2... g6 {[%clk 0:03:02.2]} 3. Bg2 {[%clk 0:03:02.8]} 3... Bg7 {[%clk 0:03:04.1]}
4. d3 {[%clk 0:03:04.1]} 4... O-O {[%clk 0:03:05.3]} 5. Nc3 {[%clk 0:03:05.4]}
5... d6 {[%clk 0:03:04.8]} 6. h4 {[%clk 0:03:06.2]} 6... h6 {[%clk 0:03:01.1]}
7. e4 {[%clk 0:03:05.6]} 7... c5 {[%clk 0:03:00.8]} 8. Bf4 {[%clk 0:03:06.1]}
8... Nc6 {[%clk 0:03:00.3]} 9. Qd2 {[%clk 0:03:06.9]} 9... Kh7 {[%clk 0:03:02]}
10. h5 {[%clk 0:03:07.5]} 10... Nxh5 {[%clk 0:02:48.8]} 11. Be3 {[%clk
0:03:06.8]} 11... e5 {[%clk 0:02:04.3]} 12. O-O-O {[%clk 0:03:05.6]} 12... Rb8
{[%clk 0:01:58.6]} 13. Rh4 {[%clk 0:03:05]} 13... Bf6 {[%clk 0:01:33.7]} 14. Rh2
{[%clk 0:03:02.6]} 14... Bg7 {[%clk 0:01:33]} 15. Rdh1 {[%clk 0:03:03.9]} 15...
Bg4 {[%clk 0:01:27.7]} 16. Rh4 {[%clk 0:03:02]} 16... Qd7 {[%clk 0:01:26.4]} 17.
Nd5 {[%clk 0:02:55.6]} 17... f5 {[%clk 0:01:11.9]} 18. exf5 {[%clk 0:02:54.1]}
18... Rxf5 {[%clk 0:01:10.3]} 19. Rxg4 {[%clk 0:02:53.4]} 1-0

[Event "*** Titled Tuesday Blitz"]
[Site "Chess.com"]
[Date "2019.10.01"]
[Round "3"]
[White "Dr-Bassem"]
[Black "cukus"]
[Result "1-0"]
[WhiteElo "2814"]
[BlackElo "2486"]
[TimeControl "180+2"]
[EndTime "13:32:59 PDT"]
[Termination "Dr-Bassem won by resignation"]

1. e4 {[%clk 0:03:01.9]} 1... e5 {[%clk 0:03:00.3]} 2. Nf3 {[%clk 0:03:02.5]}
2... Nf6 {[%clk 0:03:01.6]} 3. Nxe5 {[%clk 0:03:02.6]} 3... d6 {[%clk 0:03:03]}
4. Nf3 {[%clk 0:03:03.9]} 4... Nxe4 {[%clk 0:03:04.3]} 5. Nc3 {[%clk 0:03:05.6]}
5... Nxc3 {[%clk 0:03:05.3]} 6. dxc3 {[%clk 0:03:07.5]} 6... Be7 {[%clk
0:03:06.8]} 7. Be3 {[%clk 0:03:06.9]} 7... O-O {[%clk 0:03:07.8]} 8. Bd3 {[%clk
0:03:08.1]} 8... Nd7 {[%clk 0:03:07.2]} 9. Qe2 {[%clk 0:03:09.4]} 9... Nf6
{[%clk 0:03:06.4]} 10. O-O-O {[%clk 0:03:09.6]} 10... Re8 {[%clk 0:03:02.4]} 11.
Ng5 {[%clk 0:03:02.4]} 11... d5 {[%clk 0:02:51.5]} 12. h4 {[%clk 0:02:59.7]}
12... c5 {[%clk 0:02:44.1]} 13. Kb1 {[%clk 0:02:57.9]} 13... Bf8 {[%clk
0:02:25]} 14. Bxh7+ {[%clk 0:02:41.1]} 14... Nxh7 {[%clk 0:02:10.1]} 15. Qh5
{[%clk 0:02:42.4]} 15... Nf6 {[%clk 0:01:47.2]} 16. Qxf7+ {[%clk 0:02:42.5]}
16... Kh8 {[%clk 0:01:48.5]} 17. h5 {[%clk 0:02:43]} 17... Qd7 {[%clk
0:01:25.5]} 18. Qg6 {[%clk 0:02:31.7]} 18... Rxe3 {[%clk 0:01:19.6]} 19. fxe3
{[%clk 0:02:22.6]} 19... Qf5 {[%clk 0:01:20.2]} 20. Nf7+ {[%clk 0:02:23.1]}
20... Kg8 {[%clk 0:01:19.2]} 21. Nh6+ {[%clk 0:02:24.5]} 1-0

[Event "*** Titled Tuesday Blitz"]
[Site "Chess.com"]
[Date "2019.10.01"]
[Round "3"]
[White "DrMelekess"]
[Black "Babas"]
[Result "1-0"]
[WhiteElo "2727"]
[BlackElo "2468"]
[TimeControl "180+2"]
[EndTime "13:33:37 PDT"]
[Termination "DrMelekess won by resignation"]

1. d4 {[%clk 0:02:58.5]} 1... Nf6 {[%clk 0:03:00.7]} 2. Nf3 {[%clk 0:02:58.7]}
2... c5 {[%clk 0:03:01.7]} 3. d5 {[%clk 0:02:59.1]} 3... e6 {[%clk 0:03:02.9]}
4. Nc3 {[%clk 0:02:59.4]} 4... b5 {[%clk 0:03:03.6]} 5. dxe6 {[%clk 0:02:57.6]}
5... fxe6 {[%clk 0:03:05.5]} 6. Nxb5 {[%clk 0:02:58.8]} 6... d5 {[%clk
0:03:06.9]} 7. c4 {[%clk 0:02:58.9]} 7... a6 {[%clk 0:03:07.4]} 8. Nc3 {[%clk
0:02:58.6]} 8... d4 {[%clk 0:03:08.9]} 9. Nb1 {[%clk 0:02:58.3]} 9... Nc6 {[%clk
0:03:10.5]} 10. g3 {[%clk 0:02:56]} 10... e5 {[%clk 0:03:11.5]} 11. Bg2 {[%clk
0:02:57.4]} 11... Bd7 {[%clk 0:02:46.4]} 12. Ng5 {[%clk 0:02:52.3]} 12... Be7
{[%clk 0:02:31.5]} 13. O-O {[%clk 0:02:39.2]} 13... O-O {[%clk 0:02:32.1]} 14.
Nd2 {[%clk 0:02:39.4]} 14... Qc8 {[%clk 0:02:23.8]} 15. b3 {[%clk 0:02:26.1]}
15... h6 {[%clk 0:02:05.5]} 16. Nge4 {[%clk 0:02:24.1]} 16... Bh3 {[%clk
0:02:06.4]} 17. Nxf6+ {[%clk 0:02:23.9]} 17... gxf6 {[%clk 0:02:04.4]} 18. e3
{[%clk 0:02:10.8]} 18... Bxg2 {[%clk 0:02:02]} 19. Kxg2 {[%clk 0:02:11.3]} 19...
f5 {[%clk 0:02:03]} 20. Qh5 {[%clk 0:02:08.8]} 20... Qe6 {[%clk 0:02:03.4]} 21.
e4 {[%clk 0:01:58.3]} 21... fxe4 {[%clk 0:01:51.2]} 22. Nxe4 {[%clk 0:01:57.1]}
22... Rf5 {[%clk 0:01:52.5]} 23. Qxh6 {[%clk 0:01:50.5]} 23... Qf7 {[%clk
0:01:42.8]} 24. Qxc6 {[%clk 0:01:45.8]} 1-0

[Event "*** Titled Tuesday Blitz"]
[Site "Chess.com"]
[Date "2019.10.01"]
[Round "3"]
[White "WiktoriaPOL"]
[Black "vovachesss"]
[Result "0-1"]
[WhiteElo "2219"]
[BlackElo "2539"]
[TimeControl "180+2"]
[EndTime "13:33:52 PDT"]
[Termination "vovachesss won by resignation"]

1. c4 {[%clk 0:03:01.9]} 1... Nf6 {[%clk 0:02:56.7]} 2. Nc3 {[%clk 0:03:01.8]}
2... d6 {[%clk 0:02:57]} 3. g3 {[%clk 0:02:53.2]} 3... h5 {[%clk 0:02:58.1]} 4.
h4 {[%clk 0:02:50.8]} 4... g6 {[%clk 0:02:58.5]} 5. Bg2 {[%clk 0:02:50.5]} 5...
Bg7 {[%clk 0:03:00.1]} 6. d3 {[%clk 0:02:51.7]} 6... O-O {[%clk 0:03:01.6]} 7.
e4 {[%clk 0:02:52.7]} 7... c5 {[%clk 0:02:58.5]} 8. Nge2 {[%clk 0:02:52.8]} 8...
Nc6 {[%clk 0:03:00.1]} 9. f4 {[%clk 0:02:52.9]} 9... Ng4 {[%clk 0:02:57.4]} 10.
O-O {[%clk 0:02:51]} 10... Nd4 {[%clk 0:02:57.6]} 11. Bd2 {[%clk 0:02:24]} 11...
a6 {[%clk 0:02:58.1]} 12. Qc1 {[%clk 0:02:07.3]} 12... Rb8 {[%clk 0:02:51.5]}
13. Be3 {[%clk 0:02:07.4]} 13... Nxe3 {[%clk 0:02:50.4]} 14. Qxe3 {[%clk
0:02:04.6]} 14... Nc2 {[%clk 0:02:51.5]} 15. Qd2 {[%clk 0:02:05]} 15... Nxa1
{[%clk 0:02:51.9]} 16. Rxa1 {[%clk 0:02:05.9]} 16... b5 {[%clk 0:02:50.6]} 17.
cxb5 {[%clk 0:02:05.8]} 17... axb5 {[%clk 0:02:51.5]} 18. Rf1 {[%clk 0:02:04.2]}
18... e6 {[%clk 0:02:39.6]} 19. f5 {[%clk 0:02:02]} 19... exf5 {[%clk
0:02:39.4]} 20. exf5 {[%clk 0:02:02.5]} 20... Bxf5 {[%clk 0:02:40.4]} 21. Nf4
{[%clk 0:02:01.6]} 21... c4 {[%clk 0:02:13.6]} 22. dxc4 {[%clk 0:01:59.4]} 22...
bxc4 {[%clk 0:02:14.7]} 23. Nxh5 {[%clk 0:01:58.5]} 23... Bd3 {[%clk 0:02:01]}
24. Nxg7 {[%clk 0:01:58.5]} 24... Bxf1 {[%clk 0:01:57.1]} 25. Bxf1 {[%clk
0:01:55.2]} 25... Kxg7 {[%clk 0:01:58.2]} 26. Qd4+ {[%clk 0:01:49.7]} 26... Qf6
{[%clk 0:01:58.7]} 27. Qxc4 {[%clk 0:01:50.7]} 27... Rxb2 {[%clk 0:01:54.9]} 28.
Ne4 {[%clk 0:01:51.2]} 28... Qe5 {[%clk 0:01:49.7]} 29. Bg2 {[%clk 0:01:44.2]}
29... d5 {[%clk 0:01:49.7]} 0-1

[Event "*** Titled Tuesday Blitz"]
[Site "Chess.com"]
[Date "2019.10.01"]
[Round "3"]
[White "cherryandmint"]
[Black "Parhamov"]
[Result "1/2-1/2"]
[WhiteElo "2765"]
[BlackElo "3027"]
[TimeControl "180+2"]
[EndTime "13:33:56 PDT"]
[Termination "Game drawn by agreement"]

1. e4 {[%clk 0:03:01.9]} 1... e5 {[%clk 0:03:01.2]} 2. Nf3 {[%clk 0:03:02.5]}
2... Nc6 {[%clk 0:03:02.6]} 3. Bc4 {[%clk 0:03:04]} 3... Bc5 {[%clk 0:03:03.2]}
4. O-O {[%clk 0:03:04.1]} 4... Nf6 {[%clk 0:03:04.4]} 5. d3 {[%clk 0:03:05.6]}
5... d6 {[%clk 0:03:05.8]} 6. c3 {[%clk 0:03:04.8]} 6... a5 {[%clk 0:03:06.8]}
7. Bb3 {[%clk 0:03:00.6]} 7... O-O {[%clk 0:03:01.2]} 8. Re1 {[%clk 0:02:56.8]}
8... h6 {[%clk 0:03:02.2]} 9. h3 {[%clk 0:02:56.9]} 9... Re8 {[%clk 0:03:03.2]}
10. Nbd2 {[%clk 0:02:57.2]} 10... Be6 {[%clk 0:03:01.8]} 11. Nf1 {[%clk
0:02:39.5]} 11... b5 {[%clk 0:03:02]} 12. a4 {[%clk 0:02:33.4]} 12... Bxb3
{[%clk 0:03:00.3]} 13. Qxb3 {[%clk 0:02:33.8]} 13... b4 {[%clk 0:03:02.2]} 14.
Be3 {[%clk 0:02:34.2]} 14... Bxe3 {[%clk 0:03:00.5]} 15. Nxe3 {[%clk 0:02:36.1]}
15... Rb8 {[%clk 0:03:02]} 16. Qc4 {[%clk 0:02:32]} 16... Qd7 {[%clk 0:03:02.4]}
17. Nd5 {[%clk 0:02:27.2]} 17... Nxd5 {[%clk 0:03:00.9]} 18. exd5 {[%clk
0:02:28.5]} 18... Ne7 {[%clk 0:02:59.2]} 19. d4 {[%clk 0:02:29.8]} 19... c6
{[%clk 0:02:56.4]} 20. dxe5 {[%clk 0:02:18]} 20... Nxd5 {[%clk 0:02:57.2]} 21.
Rad1 {[%clk 0:02:02.9]} 21... bxc3 {[%clk 0:02:58.1]} 22. bxc3 {[%clk
0:02:03.4]} 22... Nb6 {[%clk 0:02:58.9]} 23. Qa6 {[%clk 0:01:27.5]} 23... d5
{[%clk 0:03:00.1]} 24. Qxa5 {[%clk 0:01:28.2]} 24... Qe7 {[%clk 0:02:57.9]} 25.
Qb4 {[%clk 0:01:07.4]} 25... Qxb4 {[%clk 0:02:57.5]} 26. cxb4 {[%clk 0:01:09.3]}
26... Nxa4 {[%clk 0:02:59.4]} 27. Nd4 {[%clk 0:01:10.5]} 27... Nc3 {[%clk
0:02:55.4]} 28. Rc1 {[%clk 0:01:09.6]} 28... Rxb4 {[%clk 0:02:55.2]} 29. Rxc3
{[%clk 0:00:57.7]} 29... Rxd4 {[%clk 0:02:55.2]} 30. Rxc6 {[%clk 0:00:58.9]}
30... Kf8 {[%clk 0:02:53.1]} 31. Rd6 {[%clk 0:00:51.5]} 31... Re4 {[%clk
0:02:50.6]} 32. Rd1 {[%clk 0:00:49.3]} 32... R8xe5 {[%clk 0:02:49.7]} 33. R6xd5
{[%clk 0:00:49.8]} 33... Rxd5 {[%clk 0:02:51.1]} 34. Rxd5 {[%clk 0:00:50.5]}
1/2-1/2

[Event "*** Titled Tuesday Blitz"]
[Site "Chess.com"]
[Date "2019.10.01"]
[Round "3"]
[White "DanielNaroditsky"]
[Black "smshk35"]
[Result "1-0"]
[WhiteElo "3018"]
[BlackElo "2373"]
[TimeControl "180+2"]
[EndTime "13:33:58 PDT"]
[Termination "DanielNaroditsky won by resignation"]

1. e4 {[%clk 0:03:01.9]} 1... c5 {[%clk 0:03:00.7]} 2. Nf3 {[%clk 0:03:03.3]}
2... Nc6 {[%clk 0:03:01.2]} 3. Bb5 {[%clk 0:03:04.8]} 3... e6 {[%clk 0:03:01.5]}
4. O-O {[%clk 0:03:05]} 4... Nge7 {[%clk 0:03:01.8]} 5. b3 {[%clk 0:03:06.3]}
5... a6 {[%clk 0:03:00.4]} 6. Bxc6 {[%clk 0:03:07.5]} 6... Nxc6 {[%clk
0:03:00.8]} 7. Bb2 {[%clk 0:03:09.4]} 7... d6 {[%clk 0:02:51.3]} 8. d4 {[%clk
0:03:10.7]} 8... cxd4 {[%clk 0:02:51.6]} 9. Nxd4 {[%clk 0:03:12.6]} 9... e5
{[%clk 0:02:49.6]} 10. Ne2 {[%clk 0:03:09.5]} 10... Be7 {[%clk 0:02:49]} 11. c4
{[%clk 0:03:09.1]} 11... O-O {[%clk 0:02:49.7]} 12. Nbc3 {[%clk 0:03:10.3]}
12... Be6 {[%clk 0:02:48.3]} 13. Ng3 {[%clk 0:03:07]} 13... g6 {[%clk
0:02:47.8]} 14. Nd5 {[%clk 0:03:04.5]} 14... Rc8 {[%clk 0:02:37.1]} 15. f4
{[%clk 0:03:01.6]} 15... f6 {[%clk 0:02:36.5]} 16. f5 {[%clk 0:02:59.1]} 16...
Bf7 {[%clk 0:02:24.7]} 17. fxg6 {[%clk 0:02:59.6]} 17... hxg6 {[%clk 0:02:25.6]}
18. Qg4 {[%clk 0:03:00.8]} 18... Kh7 {[%clk 0:02:09]} 19. Rf3 {[%clk 0:02:50.2]}
19... Bxd5 {[%clk 0:01:48.9]} 20. Nf5 {[%clk 0:02:33.7]} 20... Qe8 {[%clk
0:01:27.7]} 21. cxd5 {[%clk 0:02:16.1]} 21... Nb4 {[%clk 0:01:12.9]} 22. Rh3+
{[%clk 0:02:09.6]} 22... Kg8 {[%clk 0:01:13.1]} 23. Qh4 {[%clk 0:02:11.1]} 1-0

[Event "*** Titled Tuesday Blitz"]
[Site "Chess.com"]
[Date "2019.10.01"]
[Round "3"]
[White "maciek_92"]
[Black "CastleOasisChess"]
[Result "1-0"]
[WhiteElo "2849"]
[BlackElo "2008"]
[TimeControl "180+2"]
[EndTime "13:34:05 PDT"]
[Termination "maciek_92 won by resignation"]

1. c4 {[%clk 0:03:01.9]} 1... e6 {[%clk 0:03:00.3]} 2. Nf3 {[%clk 0:03:02.6]}
2... d5 {[%clk 0:03:01.8]} 3. d4 {[%clk 0:03:03.8]} 3... c6 {[%clk 0:03:01.7]}
4. Nc3 {[%clk 0:03:04.4]} 4... f5 {[%clk 0:03:02.8]} 5. Bf4 {[%clk 0:03:03.8]}
5... Bd6 {[%clk 0:03:03.5]} 6. Ne5 {[%clk 0:03:03.8]} 6... Nf6 {[%clk
0:03:02.5]} 7. e3 {[%clk 0:03:02.6]} 7... O-O {[%clk 0:03:03.1]} 8. c5 {[%clk
0:03:04]} 8... Bc7 {[%clk 0:03:02.8]} 9. Nd3 {[%clk 0:02:53.9]} 9... Nbd7 {[%clk
0:03:01.5]} 10. Bxc7 {[%clk 0:02:54.3]} 10... Qxc7 {[%clk 0:03:02.2]} 11. f4
{[%clk 0:02:56.2]} 11... Ne4 {[%clk 0:03:01.5]} 12. Be2 {[%clk 0:02:52.4]} 12...
Ndf6 {[%clk 0:03:02]} 13. O-O {[%clk 0:02:51]} 13... Bd7 {[%clk 0:03:03.2]} 14.
Ne5 {[%clk 0:02:49.8]} 14... Be8 {[%clk 0:03:03.4]} 15. Nxe4 {[%clk 0:02:46.3]}
15... Nxe4 {[%clk 0:03:03.8]} 16. b4 {[%clk 0:02:47.5]} 16... a6 {[%clk
0:03:04.3]} 17. a4 {[%clk 0:02:46.8]} 17... Nc3 {[%clk 0:03:05.3]} 18. Qd2
{[%clk 0:02:47.4]} 18... Nxe2+ {[%clk 0:03:06.3]} 19. Qxe2 {[%clk 0:02:49.3]}
19... Qe7 {[%clk 0:02:57.3]} 20. Kh1 {[%clk 0:02:46.6]} 20... Kh8 {[%clk
0:02:56.5]} 21. g4 {[%clk 0:02:44.7]} 21... Qh4 {[%clk 0:02:41.4]} 22. Rg1
{[%clk 0:02:38.1]} 22... fxg4 {[%clk 0:01:47.1]} 23. Rxg4 {[%clk 0:02:40]} 23...
Qh3 {[%clk 0:01:31]} 24. Rag1 {[%clk 0:02:39.6]} 24... Bh5 {[%clk 0:01:26.1]}
25. Rxg7 {[%clk 0:02:40.4]} 25... Bxe2 {[%clk 0:01:22.5]} 26. Rg8+ {[%clk
0:02:41.5]} 1-0